fUSD/lending_fUSD_20240526
["ID","MTS","AMOUNT","RATE_DAILY","PERIOD"]
[327945421,1716689490222,-500.0,0.00032054,5]
[327945422,1716689490231,-500.0,0.00032054,5]
[327945423,1716689490241,-500.0,0.00032054,5]
[327945424,1716689490250,-741.46,0.00032054,5]
[327945425,1716689490259,-570.63,0.00032054,5]
[327945426,1716689490269,-525.68,0.00032054,5]
[327945427,1716689490278,-500.0,0.00032054,5]
[327945428,1716689490287,-773.16,0.00032054,5]
[327945429,1716689490297,-517.91218507,0.00032054,5]
[327945430,1716689490306,-500.0,0.00032054,5]
[327945431,1716689490316,-500.0,0.00032054,5]
[327945432,1716689490325,-500.0,0.00032054,5]
[327945433,1716689490335,-500.0,0.00032054,5]
[327945434,1716689490344,-500.0,0.00032054,5]
[327945435,1716689490353,-500.0,0.00032054,5]
[327945436,1716689490363,-500.0,0.00032054,5]
[327945437,1716689490375,-500.0,0.00032054,5]
[327945438,1716689490384,-500.0,0.00032054,5]
[327945439,1716689490394,-660.47,0.00032054,5]
[327945440,1716689490403,-500.0,0.00032054,5]
[327945441,1716689490412,-1136.2,0.00032054,5]
[327945442,1716689490422,-500.0,0.00032054,5]
[327945443,1716689490432,-500.0,0.00032054,5]
[327945444,1716689490441,-500.0,0.00032054,5]
[327945445,1716689490455,-500.0,0.00032054,5]
[327945446,1716689490466,-1120.09,0.00032054,5]
[327945447,1716689490476,-500.0,0.00032054,5]
[327945448,1716689490485,-500.0,0.00032054,5]
[327945449,1716689490495,-500.0,0.00032054,5]
[327945450,1716689490504,-799.61,0.00032054,5]
[327945451,1716689490514,-603.81,0.00032054,5]
[327945452,1716689490523,-538.86407378,0.00032054,5]
[327945453,1716689490533,-500.0,0.00032054,5]
[327945454,1716689490543,-500.0,0.00032054,5]
[327945455,1716689490552,-500.0,0.00032054,5]
[327945456,1716689490561,-500.0,0.00032054,5]
[327945457,1716689490570,-500.0,0.00032054,5]
[327945458,1716689490579,-500.0,0.00032054,5]
[327945459,1716689490588,-500.0,0.00032054,5]
[327945460,1716689490598,-2867.24,0.00032054,5]
[327945461,1716689490607,-500.0,0.00032054,5]
[327945462,1716689490617,-1143.3,0.00032054,5]
[327945463,1716689490626,-500.0,0.00032054,5]
[327945464,1716689490635,-500.0,0.00032054,5]
[327945465,1716689490645,-500.0,0.00032054,5]
[327945466,1716689490655,-740.37,0.00032054,5]
[327945467,1716689490664,-500.0,0.00032054,5]
[327945468,1716689490674,-500.0,0.00032054,5]
[327945469,1716689490683,-916.37,0.00032054,5]
[327945470,1716689490692,-500.0,0.00032054,5]
[327945471,1716689490702,-500.0,0.00032054,5]
[327945472,1716689490711,-1098.1,0.00032054,5]
[327945473,1716689490720,-500.0,0.00032054,5]
[327945474,1716689490730,-500.0,0.00032054,5]
[327945475,1716689490740,-500.0,0.00032054,5]
[327945476,1716689490749,-830.5,0.00032054,5]
[327945477,1716689490758,-630.46,0.00032054,5]
[327945478,1716689490768,-500.0,0.00032054,5]
[327945479,1716689490777,-500.0,0.00032054,5]
[327945480,1716689490786,-500.0,0.00032054,5]
[327945481,1716689490796,-661.61,0.00032054,5]
[327945482,1716689490806,-500.0,0.00032054,5]
[327945483,1716689490818,-550.99,0.00032054,5]
[327945484,1716689490828,-1244.61,0.00032054,5]
[327945485,1716689490838,-500.0,0.00032054,5]
[327945486,1716689490847,-596.8,0.00032054,5]
[327945487,1716689490856,-500.0,0.00032054,5]
[327945488,1716689490866,-500.0,0.00032054,5]
[327945489,1716689490875,-500.0,0.00032054,5]
[327945490,1716689490884,-500.0,0.00032054,5]
[327945491,1716689490894,-500.0,0.00032054,5]
[327945492,1716689490903,-500.0,0.00032054,5]
[327945493,1716689490912,-500.0,0.00032054,5]
[327945494,1716689490921,-647.89,0.00032054,5]
[327945495,1716689490931,-500.0,0.00032054,5]
[327945496,1716689490940,-666.05,0.00032054,5]
[327945497,1716689490949,-500.0,0.00032054,5]
[327945498,1716689490959,-706.29,0.00032054,5]
[327945499,1716689490968,-1354.97,0.00032054,5]
[327945500,1716689490977,-500.0,0.00032054,5]
[327945501,1716689490987,-500.0,0.00032054,5]
[327945502,1716689490996,-1131.77,0.00032054,5]
[327945503,1716689491006,-500.0,0.00032054,5]
[327945504,1716689491015,-300.0,0.00032054,5]
[327945505,1716689491025,-500.0,0.00032054,5]
[327945506,1716689491034,-500.0,0.00032054,5]
[327945507,1716689491043,-937.41,0.00032054,5]
[327945508,1716689491053,-1076.65,0.00032054,5]
[327945509,1716689491063,-500.0,0.00032054,5]
[327945510,1716689491072,-794.53,0.00032054,5]
[327945511,1716689491082,-508.7,0.00032054,5]
[327945512,1716689491092,-500.0,0.00032054,5]
[327945513,1716689491101,-558.06,0.00032054,5]
[327945514,1716689491111,-500.0,0.00032054,5]
[327945515,1716689491120,-500.0,0.00032054,5]
[327945516,1716689491130,-500.0,0.00032054,5]
[327945517,1716689491139,-500.0,0.00032054,5]
[327945518,1716689491149,-1051.06,0.00032054,5]
[327945519,1716689491159,-816.68,0.00032054,5]
[327945520,1716689491169,-500.0,0.00032054,5]
[327945521,1716689491179,-500.0,0.00032054,5]
[327945522,1716689491189,-500.0,0.00032054,5]
[327945523,1716689491199,-500.0,0.00032054,5]
[327945524,1716689491208,-576.61,0.00032054,5]
[327945525,1716689491217,-500.0,0.00032054,5]
[327945526,1716689491227,-500.0,0.00032054,5]
[327945527,1716689491236,-500.0,0.00032054,5]
[327945528,1716689491246,-500.0,0.00032054,5]
[327945529,1716689491255,-500.0,0.00032054,5]
[327945530,1716689491265,-500.0,0.00032054,5]
[327945531,1716689491275,-510.28406657,0.00032054,5]
[327945532,1716689491284,-500.0,0.00032054,5]
[327945533,1716689491294,-528.49855237,0.00032054,5]
[327945534,1716689491303,-500.0,0.00032054,5]
[327945535,1716689491313,-500.0,0.00032054,8]
[327945536,1716689491323,-845.3,0.00032054,5]
[327945537,1716689491332,-486.94396861,0.00032054,5]
[327945538,1716689491342,-603.67,0.00032054,5]
[327945539,1716689491352,-1429.65,0.00032054,5]
[327945540,1716689491361,-500.0,0.00032054,5]
[327945541,1716689491371,-549.14045195,0.00032054,5]
[327945542,1716689491380,-500.0,0.00032054,5]
[327945543,1716689491390,-500.0,0.00032054,5]
[327945544,1716689491400,-500.0,0.00032054,5]
[327945545,1716689491409,-1268.5,0.00032054,5]
[327945546,1716689491418,-519.71,0.00032054,5]
[327945547,1716689491428,-889.71,0.00032054,5]
[327945548,1716689491438,-996.94,0.00032054,5]
[327945549,1716689491449,-500.0,0.00032054,5]
[327945550,1716689491460,-395.51300193,0.00032054,5]
[327945551,1716689491470,-509.98895131,0.00032054,5]
[327945552,1716689491479,-500.0,0.00032054,5]
[327945553,1716689491489,-500.0,0.00032054,5]
[327945554,1716689491500,-828.16,0.00032054,5]
[327945555,1716689491510,-500.0,0.00032054,5]
[327945556,1716689491520,-675.54,0.00032054,5]
[327945557,1716689491531,-885.01,0.00032054,5]
[327945558,1716689491542,-772.08,0.00032054,5]
[327945559,1716689491551,-500.0,0.00032054,5]
[327945560,1716689491561,-500.0,0.00032054,5]
[327945561,1716689491571,-500.0,0.00032054,5]
[327945562,1716689491580,-500.0,0.00032054,5]
[327945563,1716689491591,-537.09600608,0.00032054,5]
[327945564,1716689491600,-500.0,0.00032054,5]
[327945565,1716689491610,-500.0,0.00032054,5]
[327945566,1716689491620,-500.0,0.00032054,5]
[327945567,1716689491629,-614.68909749,0.00032054,5]
[327945568,1716689491639,-500.0,0.00032054,5]
[327945569,1716689491648,-500.0,0.00032054,5]
[327945570,1716689491657,-160.85181963,0.00032054,5]
[327945571,1716689491667,-500.0,0.00032054,5]
[327945572,1716689491676,-500.0,0.00032054,5]
[327945573,1716689491686,-500.0,0.00032054,5]
[327945574,1716689491695,-500.0,0.00032054,5]
[327945575,1716689491704,-500.0,0.00032054,5]
[327945576,1716689491714,-500.0,0.00032054,5]
[327945577,1716689491724,-500.0,0.00032054,5]
[327945578,1716689491733,-500.0,0.00032054,5]
[327945579,1716689491743,-1252.92,0.00032054,5]
[327945580,1716689491760,-500.0,0.00032054,5]
[327945581,1716689491783,-523.12,0.00032054,5]
[327945582,1716689491805,-940.45,0.00032054,5]
[327945583,1716689491830,-500.0,0.00032054,5]
[327945584,1716689491851,-500.0,0.00032054,5]
[327945585,1716689491872,-694.09,0.00032054,5]
[327945586,1716689491895,-500.0,0.00032054,5]
[327945587,1716689491917,-500.0,0.00032054,5]
[327945588,1716689491940,-500.0,0.00032054,5]
[327945589,1716689491962,-512.56,0.00032054,5]
[327945590,1716689491982,-500.0,0.00032054,5]
[327945591,1716689491991,-543.3,0.00032054,5]
[327945592,1716689492001,-500.0,0.00032054,5]
[327945593,1716689492011,-544.1609827,0.00032054,5]
[327945594,1716689492022,-500.0,0.00032054,5]
[327945595,1716689492031,-500.0,0.00032054,5]
[327945596,1716689492041,-642.33,0.00032054,5]
[327945597,1716689492051,-875.62,0.00032054,5]
[327945598,1716689492061,-561.3837603,0.00032054,5]
[327945599,1716689492071,-500.0,0.00032054,5]
[327945600,1716689492080,-500.0,0.00032054,5]
[327945601,1716689492090,-500.0,0.00032054,5]
[327945602,1716689492100,-707.26,0.00032054,5]
[327945603,1716689492109,-549.16877902,0.00032054,5]
[327945604,1716689492119,-500.0,0.00032054,5]
[327945605,1716689492128,-500.0,0.00032054,5]
[327945606,1716689492138,-547.03,0.00032054,5]
[327945607,1716689492147,-500.0,0.00032054,5]
[327945608,1716689492156,-500.0,0.00032054,5]
[327945609,1716689492166,-500.0,0.00032054,5]
[327945610,1716689492175,-500.0,0.00032054,5]
[327945611,1716689492185,-500.0,0.00032054,5]
[327945612,1716689492194,-643.79,0.00032054,5]
[327945613,1716689492204,-561.77757932,0.00032054,5]
[327945614,1716689492213,-500.0,0.00032054,5]
[327945615,1716689492223,-378.7,0.00032054,5]
[327945616,1716689492232,-500.0,0.00032054,5]
[327945617,1716689492241,-500.0,0.00032054,5]
[327945618,1716689492250,-691.88,0.00032054,5]
[327945619,1716689492260,-1291.12,0.00032054,5]
[327945620,1716689492271,-1217.05,0.00032054,5]
[327945621,1716689492280,-500.0,0.00032054,5]
[327945622,1716689492290,-504.31,0.00032054,5]
[327945623,1716689492299,-500.0,0.00032054,5]
[327945624,1716689492309,-526.51,0.00032054,5]
[327945625,1716689492319,-1030.36,0.00032054,5]
[327945626,1716689492328,-500.0,0.00032054,5]
[327945627,1716689492338,-855.19,0.00032054,5]
[327945628,1716689492347,-1117.69,0.00032054,5]
[327945629,1716689492356,-548.89263332,0.00032054,5]
[327945630,1716689492366,-2054.68,0.00032054,5]
[327945631,1716689492375,-500.0,0.00032054,5]
[327945632,1716689492384,-500.0,0.00032054,5]
[327945633,1716689492394,-500.0,0.00032054,5]
[327945634,1716689492405,-1155.35,0.00032054,5]
[327945635,1716689492414,-766.1,0.00032054,5]
[327945636,1716689492424,-500.0,0.00032054,5]
[327945637,1716689492433,-500.0,0.00032054,5]
[327945638,1716689492443,-1376.34,0.00032054,5]
[327945639,1716689492457,-500.0,0.00032054,5]
[327945640,1716689492467,-1398.61,0.00032054,5]
[327945641,1716689492476,-500.0,0.00032054,5]
[327945642,1716689492485,-500.0,0.00032054,5]
[327945643,1716689492496,-4713.51,0.00032054,5]
[327945644,1716689492506,-500.0,0.00032054,5]
[327945645,1716689492516,-590.93012337,0.00032054,5]
[327945646,1716689492529,-500.0,0.00032054,5]
[327945647,1716689492538,-500.0,0.00032054,5]
[327945648,1716689492547,-500.0,0.00032054,5]
[327945649,1716689492557,-21506.58,0.00032054,5]
[327945650,1716689492567,-500.0,0.00032054,5]
[327945651,1716689492576,-500.0,0.00032054,5]
[327945652,1716689492586,-500.0,0.00032054,5]
[327945653,1716689492596,-640.89,0.00032054,5]
[327945654,1716689492606,-500.0,0.00032054,5]
[327945655,1716689492616,-553.99,0.00032054,5]
[327945656,1716689492627,-686.64,0.00032054,5]
[327945657,1716689492637,-500.0,0.00032054,5]
[327945658,1716689492647,-1173.25,0.00032054,5]
[327945659,1716689492657,-1084.25,0.00032054,5]
[327945660,1716689492667,-1778.25,0.00032054,5]
[327945661,1716689492676,-795.15,0.00032054,5]
[327945662,1716689492686,-500.0,0.00032054,5]
[327945663,1716689492695,-719.04,0.00032054,5]
[327945664,1716689492705,-1658.65,0.00032054,5]
[327945665,1716689492715,-1213.28,0.00032054,5]
[327945666,1716689492724,-615.06669281,0.00032054,5]
[327945667,1716689492735,-500.0,0.00032054,5]
[327945668,1716689492744,-500.0,0.00032054,5]
[327945669,1716689492754,-500.0,0.00032054,5]
[327945670,1716689492764,-1318.05,0.00032054,5]
[327945671,1716689492775,-2945.87,0.00032054,5]
[327945672,1716689492785,-501.98,0.00032054,5]
[327945673,1716689492794,-500.0,0.00032054,5]
[327945674,1716689492804,-635.97,0.00032054,5]
[327945675,1716689492814,-500.0,0.00032054,5]
[327945676,1716689492823,-1473.09,0.00032054,5]
[327945677,1716689492833,-570.79,0.00032054,5]
[327945678,1716689492842,-500.0,0.00032054,5]
[327945679,1716689492853,-500.0,0.00032054,5]
[327945680,1716689492862,-1757.92,0.00032054,5]
[327945681,1716689492872,-500.0,0.00032054,5]
[327945682,1716689492882,-500.0,0.00032054,5]
[327945683,1716689492891,-801.85,0.00032054,5]
[327945684,1716689492901,-500.0,0.00032054,5]
[327945685,1716689492911,-2318.07,0.00032054,5]
[327945686,1716689492921,-500.0,0.00032054,5]
[327945687,1716689492931,-815.05,0.00032054,5]
[327945688,1716689492941,-500.0,0.00032054,5]
[327945689,1716689492951,-609.93,0.00032054,5]
[327945690,1716689492961,-500.0,0.00032054,5]
[327945691,1716689492971,-571.5262892,0.00032054,5]
[327945692,1716689492981,-500.0,0.00032054,5]
[327945693,1716689492992,-1126.17,0.00032054,5]
[327945694,1716689493002,-500.0,0.00032054,5]
[327945695,1716689493012,-500.0,0.00032054,5]
[327945696,1716689493027,-3561.79,0.00032054,5]
[327945697,1716689493038,-500.0,0.00032054,5]
[327945698,1716689493048,-684.65,0.00032054,5]
[327945699,1716689493059,-506.56,0.00032054,5]
[327945700,1716689493070,-500.0,0.00032054,5]
[327945701,1716689493080,-500.0,0.00032054,5]
[327945702,1716689493090,-559.22,0.00032054,5]
[327945703,1716689493100,-1596.82,0.00032054,5]
[327945704,1716689493110,-879.4,0.00032054,5]
[327945705,1716689493119,-4349.82,0.00032054,5]
[327945706,1716689493129,-500.0,0.00032054,5]
[327945707,1716689493138,-500.0,0.00032054,5]
[327945708,1716689493148,-610.05,0.00032054,5]
[327945709,1716689493158,-1082.84,0.00032054,5]
[327945710,1716689493168,-500.0,0.00032054,5]
[327945711,1716689493179,-676.31,0.00032054,5]
[327945712,1716689493189,-454.01669569,0.00032054,5]
[327945713,1716689493198,-500.0,0.00032054,5]
[327945714,1716689493208,-500.0,0.00032054,5]
[327945715,1716689493219,-4746.61,0.00032054,5]
[327945716,1716689493228,-598.47,0.00032054,5]
[327945717,1716689493238,-500.0,0.00032054,5]
[327945718,1716689493247,-644.14,0.00032054,5]
[327945719,1716689493257,-500.0,0.00032054,5]
[327945720,1716689493268,-500.0,0.00032054,5]
[327945721,1716689493277,-500.0,0.00032054,5]
[327945722,1716689493286,-742.5,0.00032054,5]
[327945723,1716689493296,-500.0,0.00032054,5]
[327945724,1716689493306,-500.0,0.00032054,5]
[327945725,1716689493316,-500.0,0.00032054,5]
[327945726,1716689493326,-500.0,0.00032054,5]
[327945727,1716689493338,-1427.0,0.00032054,5]
[327945728,1716689493350,-2343.63,0.00032054,5]
[327945729,1716689493360,-500.0,0.00032054,5]
[327945730,1716689493371,-500.0,0.00032054,5]
[327945731,1716689493381,-500.0,0.00032054,5]
[327945732,1716689493392,-500.0,0.00032054,5]
[327945733,1716689493402,-500.0,0.00032054,5]
[327945734,1716689493411,-569.19,0.00032054,5]
[327945735,1716689493421,-500.0,0.00032054,5]
[327945736,1716689493431,-974.22,0.00032054,5]
[327945737,1716689493442,-500.0,0.00032054,5]
[327945738,1716689493456,-567.67,0.00032054,5]
[327945739,1716689493466,-1275.08,0.00032054,5]
[327945740,1716689493476,-1265.51,0.00032054,5]
[327945741,1716689493486,-500.0,0.00032054,5]
[327945742,1716689493497,-500.0,0.00032054,5]
[327945743,1716689493507,-1007.98,0.00032054,5]
[327945744,1716689493519,-548.6626622,0.00032054,5]
[327945745,1716689493530,-1056.07,0.00032054,5]
[327945746,1716689493540,-500.0,0.00032054,5]
[327945747,1716689493553,-500.0,0.00032054,5]
[327945748,1716689493563,-517.88,0.00032054,5]
[327945749,1716689493573,-603.09,0.00032054,5]
[327945750,1716689493582,-990.47,0.00032054,5]
[327945751,1716689493592,-500.0,0.00032054,5]
[327945752,1716689493602,-1030.65,0.00032054,5]
[327945753,1716689493612,-2905.95,0.00032054,5]
[327945754,1716689493623,-795.06,0.00032054,5]
[327945755,1716689493633,-500.0,0.00032054,5]
[327945756,1716689493643,-622.3,0.00032054,5]
[327945757,1716689493653,-966.78,0.00032054,5]
[327945758,1716689493663,-500.0,0.00032054,5]
[327945759,1716689493672,-619.64,0.00032054,5]
[327945760,1716689493682,-1498.31,0.00032054,5]
[327945761,1716689493692,-500.0,0.00032054,5]
[327945762,1716689493702,-500.0,0.00032054,5]
[327945763,1716689493712,-500.0,0.00032054,5]
[327945764,1716689493722,-820.76,0.00032054,5]
[327945765,1716689493731,-806.89,0.00032054,5]
[327945766,1716689493741,-500.0,0.00032054,5]
[327945767,1716689493751,-500.0,0.00032054,5]
[327945768,1716689493761,-858.87,0.00032054,5]
[327945769,1716689493772,-500.0,0.00032054,5]
[327945770,1716689493782,-500.0,0.00032054,5]
[327945771,1716689493792,-500.0,0.00032054,5]
[327945772,1716689493802,-500.0,0.00032054,5]
[327945773,1716689493812,-517.71,0.00032054,5]
[327945774,1716689493822,-500.0,0.00032054,5]
[327945775,1716689493831,-500.0,0.00032054,5]
[327945776,1716689493842,-789.19,0.00032054,5]
[327945777,1716689493852,-1314.91,0.00032054,5]
[327945778,1716689493862,-1468.91,0.00032054,5]
[327945779,1716689493872,-4648.94,0.00032054,5]
[327945780,1716689493882,-500.0,0.00032054,5]
[327945781,1716689493891,-803.67,0.00032054,5]
[327945782,1716689493901,-500.0,0.00032054,5]
[327945783,1716689493911,-991.33,0.00032054,5]
[327945784,1716689493921,-504.6,0.00032054,5]
[327945785,1716689493931,-500.0,0.00032054,5]
[327945786,1716689493940,-500.0,0.00032054,5]
[327945787,1716689493951,-824.23,0.00032054,5]
[327945788,1716689493960,-500.0,0.00032054,5]
[327945789,1716689493970,-500.0,0.00032054,5]
[327945790,1716689493981,-500.0,0.00032054,5]
[327945791,1716689493991,-806.48,0.00032054,5]
[327945792,1716689494001,-5240.53,0.00032054,5]
[327945793,1716689494011,-500.0,0.00032054,5]
[327945794,1716689494023,-500.0,0.00032054,5]
[327945795,1716689494033,-500.0,0.00032054,5]
[327945796,1716689494043,-652.88,0.00032054,5]
[327945797,1716689494054,-500.0,0.00032054,5]
[327945798,1716689494063,-500.0,0.00032054,5]
[327945799,1716689494074,-2341.34,0.00032054,5]
[327945800,1716689494084,-546.02,0.00032054,5]
[327945801,1716689494319,-500.0,0.00032054,5]
[327945802,1716689494329,-500.0,0.00032054,5]
[327945803,1716689494338,-561.48356652,0.00032054,5]
[327945804,1716689494348,-1757.47,0.00032054,5]
[327945805,1716689494358,-844.38,0.00032054,5]
[327945806,1716689494368,-1194.67,0.00032054,5]
[327945807,1716689494377,-500.0,0.00032054,5]
[327945808,1716689494387,-881.28,0.00032054,5]
[327945809,1716689494396,-500.0,0.00032054,5]
[327945810,1716689494406,-500.0,0.00032054,5]
[327945811,1716689494415,-500.0,0.00032054,5]
[327945812,1716689494424,-1498.45,0.00032054,5]
[327945813,1716689494434,-500.0,0.00032054,5]
[327945814,1716689494443,-2277.28,0.00032054,5]
[327945815,1716689494456,-500.0,0.00032054,5]
[327945816,1716689494466,-500.0,0.00032054,5]
[327945817,1716689494475,-1606.52,0.00032054,5]
[327945818,1716689494484,-2698.4,0.00032054,5]
[327945819,1716689494495,-500.0,0.00032054,5]
[327945820,1716689494504,-1582.95,0.00032054,5]
[327945821,1716689494513,-500.0,0.00032054,5]
[327945822,1716689494527,-4781.37,0.00032054,5]
[327945823,1716689494536,-500.0,0.00032054,5]
[327945824,1716689494545,-749.73,0.00032054,5]
[327945825,1716689494555,-500.0,0.00032054,5]
[327945826,1716689494564,-879.82,0.00032054,5]
[327945827,1716689494573,-500.0,0.00032054,5]
[327945828,1716689494582,-787.2,0.00032054,5]
[327945829,1716689494592,-500.0,0.00032054,5]
[327945830,1716689494601,-1104.27,0.00032054,5]
[327945831,1716689494610,-1274.37,0.00032054,5]
[327945832,1716689494619,-500.0,0.00032054,5]
[327945833,1716689494628,-879.61,0.00032054,5]
[327945834,1716689494639,-959.95,0.00032054,5]
[327945835,1716689494648,-1849.48,0.00032054,5]
[327945836,1716689494657,-500.0,0.00032054,5]
[327945837,1716689494666,-500.0,0.00032054,5]
[327945838,1716689494676,-569.58,0.00032054,5]
[327945839,1716689494686,-745.38,0.00032054,5]
[327945840,1716689494695,-500.0,0.00032054,5]
[327945841,1716689494704,-500.0,0.00032054,5]
[327945842,1716689494713,-1559.51,0.00032054,5]
[327945843,1716689494723,-500.0,0.00032054,5]
[327945844,1716689494732,-500.0,0.00032054,5]
[327945845,1716689494741,-500.0,0.00032054,5]
[327945846,1716689494750,-500.0,0.00032054,5]
[327945847,1716689494759,-500.0,0.00032054,5]
[327945848,1716689494771,-2287.92,0.00032054,5]
[327945849,1716689494781,-1597.17,0.00032054,5]
[327945850,1716689494790,-500.0,0.00032054,5]
[327945851,1716689494800,-500.0,0.00032054,5]
[327945852,1716689494809,-500.0,0.00032054,5]
[327945853,1716689494818,-643.68,0.00032054,5]
[327945854,1716689494827,-500.0,0.00032054,5]
[327945855,1716689494836,-500.0,0.00032054,5]
[327945856,1716689494846,-502.29360543,0.00032054,5]
[327945857,1716689494855,-500.0,0.00032054,5]
[327945858,1716689494864,-1236.1,0.00032054,5]
[327945859,1716689494873,-500.0,0.00032054,5]
[327945860,1716689494882,-2317.12,0.00032054,5]
[327945861,1716689494892,-500.0,0.00032054,5]
[327945862,1716689494901,-1437.58,0.00032054,5]
[327945863,1716689494910,-3692.99,0.00032054,5]
[327945864,1716689494919,-2152.49,0.00032054,5]
[327945865,1716689494928,-500.0,0.00032054,5]
[327945866,1716689494938,-500.0,0.00032054,5]
[327945867,1716689494947,-500.0,0.00032054,5]
[327945868,1716689494956,-1613.17,0.00032054,2]
[327945869,1716689494965,-699.63,0.00032054,5]
[327945870,1716689494974,-500.0,0.00032054,5]
[327945871,1716689494984,-2548.61,0.00032054,5]
[327945872,1716689494993,-1752.19,0.00032054,5]
[327945873,1716689495002,-882.35,0.00032054,2]
[327945874,1716689495011,-1342.45,0.00032054,5]
[327945875,1716689495021,-5666.99,0.00032054,5]
[327945876,1716689495030,-500.0,0.00032054,5]
[327945877,1716689495039,-2118.61,0.00032054,5]
[327945878,1716689495049,-500.0,0.00032054,5]
[327945879,1716689495058,-901.6,0.00032054,5]
[327945880,1716689495068,-500.0,0.00032054,5]
[327945881,1716689495077,-805.87,0.00032054,5]
[327945882,1716689495086,-500.0,0.00032054,5]
[327945883,1716689495095,-500.0,0.00032054,5]
[327945884,1716689495104,-2125.94,0.00032054,5]
[327945885,1716689495113,-419.65550912,0.00032054,5]
[327945886,1716689495123,-500.0,0.00032054,5]
[327945887,1716689495133,-1963.15,0.00032054,5]
[327945888,1716689495142,-500.0,0.00032054,5]
[327945889,1716689495152,-529.26,0.00032054,5]
[327945890,1716689495162,-1571.35,0.00032054,5]
[327945891,1716689495171,-500.0,0.00032054,5]
[327945892,1716689495182,-386.84904338,0.00032054,5]
[327945893,1716689495193,-691.28,0.00032054,5]
[327945894,1716689495203,-534.60839512,0.00032054,5]
[327945895,1716689495214,-500.0,0.00032054,5]
[327945896,1716689495225,-528.64329744,0.00032054,5]
[327945897,1716689495235,-2002.14,0.00032054,5]
[327945898,1716689495245,-500.0,0.00032054,5]
[327945899,1716689495254,-456.67115601,0.00032054,5]
[327945900,1716689495264,-709.89,0.00032054,5]
[327945901,1716689495275,-1147.01,0.00032054,5]
[327945902,1716689495284,-500.0,0.00032054,5]
[327945903,1716689495293,-500.0,0.00032054,5]
[327945904,1716689495302,-500.0,0.00032054,5]
[327945905,1716689495311,-1013.94,0.00032054,5]
[327945906,1716689495321,-500.0,0.00032054,5]
[327945907,1716689495330,-500.0,0.00032054,5]
[327945908,1716689495338,-500.0,0.00032054,5]
[327945909,1716689495348,-1523.91,0.00032054,5]
[327945910,1716689495357,-500.0,0.00032054,5]
[327945911,1716689495366,-2343.93,0.00032054,5]
[327945912,1716689495375,-500.0,0.00032054,5]
[327945913,1716689495384,-534.67637953,0.00032054,5]
[327945914,1716689495394,-174.53841093,0.00032054,5]
[327945915,1716689495405,-1192.5,0.00032054,5]
[327945916,1716689495414,-1271.57,0.00032054,5]
[327945917,1716689495424,-1868.72,0.00032054,5]
[327945918,1716689495434,-726.18,0.00032054,5]
[327945919,1716689495443,-1412.09,0.00032054,5]
[327945920,1716689495457,-1449.97,0.00032054,5]